Cogmind - Beta 12 @@@ ROGUE MODE // 2023.10.27 @ 07:04:38 Player: Fleshy Vegetable Bird Result: Destroyed by as-81919 with Assembled Rifle Performance ------------- Evolutions (0) 0 Regions Visited (2) 400 Robots Destroyed (9) 45 Value Destroyed (65) 65 Prototype IDs (2) 40 Alien Tech Used (0) 0 Bonus (0) 0 TOTAL SCORE: 550 Bonus ------- None Cogmind --------- Core Integrity 0/250 Matter 284/300 Energy 53/100 System Corruption 0% Temperature Cool (3) Movement Core (50) Location -10/Mines Parts ------- > --- POWER (1) -------- (None) > --- PROPULSION (2) --- (None) > --- UTILITY (2) ------ (None) > --- WEAPON (2) ------- (None) > --- INVENTORY (5) ---- Wheel Wheel Improved Terrain Scanner Medium Laser Mining Laser Peak State ------------ > --- POWER ------------ Light Ion Engine > --- PROPULSION ------- Wheel Wheel > --- UTILITY ---------- Small Storage Unit Improved Terrain Scanner > --- WEAPON ----------- Assault Rifle Light Assault Rifle > --- INVENTORY -------- Wheel Wheel Wheel Large Storage Unit High-capacity Storage Unit Improved Terrain Scanner Medium Laser Mining Laser [Rating: 10] Favorites ----------- Power Light Ion Engine Engine Light Ion Engine Propulsion Wheel Wheel Wheel Utility Improved Terrain Scanner Device Improved Terrain Scanner Storage Large Storage Unit Weapon Assault Rifle Energy Gun Medium Laser Ballistic Gun Assault Rifle Build | -11 -10 -10 ------- Run | Jun Mat Min Slots Evolved . | . . . Power . | . . . Propulsion . | . . . Utility . | . . . Weapon . | . . . Parts Attached 12 | 8 1 3 Power 1 | 1 . . Engine 1 | 1 . . Core . | . . . Reactor . | . . . Propulsion 3 | 2 . 1 Treads . | . . . Leg . | . . . Wheel 3 | 2 . 1 Hover . | . . . Flight . | . . . Utility 3 | 2 1 . Device 1 | 1 . . Storage 2 | 1 1 . Processor . | . . . Hackware . | . . . Protection . | . . . Artifact . | . . . Weapon 5 | 3 . 2 Energy Gun 3 | 1 . 2 Energy Cannon . | . . . Ballistic Gun 2 | 2 . . Ballistic Cannon . | . . . Launcher . | . . . Special Weapon . | . . . Impact Weapon . | . . . Slashing Weapon . | . . . Piercing Weapon . | . . . Special Melee Weapon . | . . . Unidentified Prototypes . | . . . Parts Lost 9 | . . 9 Power 1 | . . 1 Propulsion 3 | . . 3 Utility 1 | . . 1 Weapon 4 | . . 4 Highest Loss Streak 9 | . . 9 To Critical Strikes . | . . . Average Slot Usage (%) 97 | . 100 92 Engine 13 | . 14 12 Wheel 26 | . 28 25 Device 13 | . 14 13 Storage 14 | . 14 14 Ballistic Gun 27 | . 28 26 Naked Turns 1 | . . 1 Heaviest Build 27 | 12 27 27 Greatest Support 20 | 20 20 20 Greatest Overweight (x) 2 | . 1 2 Average Overweight (x) . | . . 1 Largest Inventory Capacity 15 | 8 15 15 Average Capacity 11 | 7 11 14 Most Carried 9 | 7 9 9 Average Carried 6 | 2 7 8 Final Capacity 15 | 8 15 5 Final Carried 9 | 6 9 5 Class Distribution -------------------- 100% | Mutant Dominant Class ---------------- Mutant | -10/Materials Mutant | -10/Mines Resources | -11 -10 -10 ----------- Run | Jun Mat Min Matter Collected 378 | 319 45 14 Remotely . | . . . Salvage Created 243 | 163 46 34 Parts 18 | 13 5 . Haulers Intercepted . | . . . Recyclers Shooed . | . . . Parts Field Recycled . | . . . Retrieved Matter . | . . . Parts Self-Destructed . | . . . Prevented . | . . . Kills | -11 -10 -10 ------- Run | Jun Mat Min Combat Hostiles Destroyed 4 | . 3 1 Guns 4 | . 3 1 Classes Destroyed 5 | 2 1 2 Worker 1 | . . 1 Tunneler 4 | 4 . . Recycler 1 | 1 . . Swarmer 3 | . 3 . Assembled 1 | . . 1 Best Kill Streak 5 | 5 3 1 Combat Bots Only 3 | . 3 1 Max Kills in Single Turn 1 | 1 1 1 Gunslinging . | . . . Exploded . | . . . Melee . | . . . Uniques/NPCs Destroyed . | . . . Combat | -11 -10 -10 -------- Run | Jun Mat Min Damage Taken 881 | . 112 769 Core 250 | . 28 222 Absorbed by Shields . | . . . Core Remaining (%) 100 | 100 . . Volleys Fired 32 | 15 6 11 Largest 2 | 2 2 2 Hottest 65 | 40 40 65 Shots Fired 58 | 30 12 16 Gun 58 | 30 12 16 Cannon . | . . . Launcher . | . . . Special . | . . . Kinetic 54 | 30 12 12 Thermal . | . . . Explosive . | . . . Electromagnetic 4 | . . 4 Robot Hit Streak 7 | 7 3 5 Robot Miss Streak 3 | 2 3 3 Penetration Max . | . . . Secondary Targets . | . . . Shots Hit Robots 35 | 19 6 10 Core Hits 19 | 8 3 8 Critical Kills . | . . . Critical Parts Destroyed . | . . . Critical Strikes . | . . . Melee Attacks . | . . . Impact . | . . . Slashing . | . . . Piercing . | . . . Sneak Attacks . | . . . Combat Hostiles . | . . . Follow-up Attacks . | . . . Damage Inflicted 415 | 195 71 149 Guns 408 | 195 71 142 Cannons . | . . . Explosions . | . . . Melee . | . . . Ramming 7 | . . 7 Kinetic 358 | 195 71 92 Thermal . | . . . Explosive . | . . . Electromagnetic 50 | . . 50 Impact . | . . . Slashing . | . . . Piercing . | . . . Highest Corruption . | . . . Average Corruption . | . . . Corruption Purged . | . . . Corruption Blocked . | . . . Overload Shots . | . . . Overflow Damage . | . . . Projectiles . | . . . Explosions . | . . . Melee . | . . . Knockbacks . | . . . Impact . | . . . Kinetic . | . . . Secondary . | . . . Self-Inflicted Damage 3 | . . 3 Shots . | . . . Rammed 1 | . . 1 Targets Rammed 1 | . . 1 Kicked . | . . . Crushed . | . . . Highest Temperature 28 | . . 28 Average Temperature 14 | . . 14 Received Heat Transfer 146 | . 6 140 Siege Activations . | . . . Robots Corrupted . | . . . Combat Hostiles . | . . . Parts Fried . | . . . Impact Corruptions . | . . . Robots Melted . | . . . Combat Hostiles . | . . . Parts Melted . | . . . Heat Transferred . | . . . Parts Sabotaged . | . . . Parts Stolen . | . . . Parts Stripped . | . . . Power Chain Reactions . | . . . Missiles Intercepted . | . . . Alert | -11 -10 -10 ------- Run | Jun Mat Min Peak Influence 101 | 25 101 44 Initial 39 | . 16 39 Average 45 | 9 69 35 Maximum Alert Level . | . . . Low Security (%) 100 | 100 100 100 Level 1 . | . . . Level 2 . | . . . Level 3 . | . . . Level 4 . | . . . Level 5 . | . . . High Security . | . . . Max Security . | . . . Squads Dispatched . | . . . Investigation . | . . . Extermination . | . . . Reinforcement . | . . . Assault . | . . . Garrison . | . . . Intercept . | . . . Searches Triggered . | . . . Construction Impeded . | . . . Haulers Reinforced . | . . . Active Scanning Responses . | . . . Cargo Convoy Interrupts . | . . . Stealth | -11 -10 -10 --------- Run | Jun Mat Min Distress Signals 1 | . 1 . Communications Jammed . | . . . Distress Signals . | . . . Times Spotted 13 | . 6 7 Peak Tracking Total 7 | . 4 7 Tactical Retreats . | . . . Traps | -11 -10 -10 ------- Run | Jun Mat Min Traps Triggered . | . . . Indirectly . | . . . Trap Hack Attempts . | . . . Triggered . | . . . Disarmed . | . . . Reprogrammed . | . . . Reused . | . . . Traps Extracted . | . . . Installed . | . . . Triggered . | . . . Machines | -11 -10 -10 ---------- Run | Jun Mat Min Machines Disabled . | . . . Max in Single Turn . | . . . Machines Repaired . | . . . Machines Sabotaged . | . . . Overloaded Fab Kills . | . . . Hacking | -11 -10 -10 --------- Run | Jun Mat Min Machines Accessed 1 | . 1 . Terminals 1 | . 1 . Fabricators . | . . . Repair Stations . | . . . Recycling Units . | . . . Scanalyzers . | . . . Garrison Access . | . . . Total Hacks 4 | . 4 . Successful 2 | . 2 . Failed 2 | . 2 . Catastrophic . | . . . Database Lockouts . | . . . Manual 2 | . 2 . Terminals 4 | . 4 . Fabricators . | . . . Repair Stations . | . . . Recycling Units . | . . . Scanalyzers . | . . . Garrison Access . | . . . Terminal Hacks 1 | . 1 . Prototype ID Bank 1 | . 1 . Fabricator Hacks . | . . . Repair Station Hacks . | . . . Recycling Unit Hacks . | . . . Scanalyzer . | . . . Garrison Access Hacks . | . . . Unauthorized Hacks 1 | . 1 . Terminals 1 | . 1 . Botnet 1 | . 1 . Fabricators . | . . . Repair Stations . | . . . Recycling Units . | . . . Scanalyzers . | . . . Garrison Access . | . . . Data Cores Recovered . | . . . Used . | . . . Hacking Detections 1 | . 1 . Full Trace Events . | . . . Feedback Events . | . . . Feedback Blocked . | . . . Robot Schematics Acquired . | . . . Robots Built . | . . . Authchips . | . . . Time . | . . . Total Robot Build Rating . | . . . Part Schematics Acquired . | . . . Parts Built . | . . . Authchips . | . . . Time . | . . . Total Part Build Rating . | . . . Parts Repaired . | . . . Time . | . . . Parts Recycled . | . . . Recycled Matter . | . . . Retrieved Matter . | . . . Retrieved Components . | . . . Parts Scanalyzed . | . . . Part Schematics Acquired . | . . . Parts Damaged . | . . . Bothacking | -11 -10 -10 ------------ Run | Jun Mat Min Used RIF Installer . | . . . Robots Hacked . | . . . Non-combat . | . . . Combat . | . . . Robot Hacks Applied . | . . . Relay Couplers Released . | . . . Fabnet Peak Effective % . | . . . Robots Rewired . | . . . Allies Hacked . | . . . Hacks Repelled . | . . . Allies | -11 -10 -10 -------- Run | Jun Mat Min Total Allies . | . . . Largest Group . | . . . Highest-Rated Group . | . . . Highest-Rated Ally . | . . . Total Orders . | . . . Ally Attacks . | . . . Total Damage . | . . . Kills . | . . . Allies Corrupted . | . . . Allies Melted . | . . . Intel | -11 -10 -10 ------- Run | Jun Mat Min Robot Analysis Total . | . . . Derelict Logs Recovered . | . . . Drone Launches . | . . . Drone Recoveries . | . . . Exploration | -11 -10 -10 ------------- Run | Jun Mat Min Turns Passed 477 | 111 224 142 Spaces Moved 392 | 65 215 112 Core 20 | 18 . 2 Treads . | . . . Legs . | . . . Wheels 372 | 47 215 110 Hover . | . . . Flight . | . . . Fastest Speed 50 | 50 80 50 Average Speed 87 | 71 88 94 Slowest Speed 110 | 80 95 110 Overloaded Moves . | . . . Propulsion Burnouts . | . . . Robots Hopped . | . . . Cave-ins Triggered . | . . . Exploration Rate (%) 22 | 5 34 27 Regions Visited 2 Branch Regions 1 Pre-discovered Areas . | . . . Known Exits Taken . | . . . Unknown Exits Taken 2 | 1 1 . Scrap Searched . | . . . Spaces Dug . | . . . Terrain Destroyed . | . . . Melee . | . . . Projectile . | . . . AOE . | . . . Terrain Rammed . | . . . Walls Destroyed . | . . . Machines Disabled . | . . . Actions | -11 -10 -10 --------- Run | Jun Mat Min Total 471 | 102 236 133 Wait 15 | . 10 5 Move 390 | 64 214 112 Hop . | . . . Pick Up 18 | 14 4 . Fast Attach . | . . . Attach 10 | 7 . 3 Detach . | . . . Swap 2 | 1 1 . Drop 3 | 1 1 1 Fire 32 | 15 6 11 Melee . | . . . Ram 1 | . . 1 Kick . | . . . Crush . | . . . Escape Stasis . | . . . Rewire . | . . . Trap . | . . . Miscellaneous . | . . . Route ------- -11/Junkyard -10/Materials -10/Mines (discovered 1 exit: [*Exi]) History --------- Turn | Location | Event 6 | -11/Junkyard | Discovered new exit (range 15) 112 | -11/Junkyard | Entered Materials 280 | -10/Materials | Discovered new exit (range 7) 309 | -10/Materials | Build established: Mutant 336 | -10/Materials | Entered Mines 359 | -10/Mines | Deemed a non-threat by the Exiles lab entrance 359 | -10/Mines | Discovered new exit (range 5) 406 | -10/Mines | Assembled infested the area 458 | -10/Mines | Core integrity fell below 50% 469 | -10/Mines | Core integrity fell below 20% 478 | -10/Mines | Destroyed by as-81919 with Assembled Rifle Last Messages --------------- squad. 00421_ Slammed into K-01 Serf. 00433_ as-92530 sneak attacks. 00436_ U-05 Engineer destroyed. 00443_ Core Extractor disabled. 00447_ Wheel destroyed. 00450_ U-05 Engineer destroyed. 00455_ Lgt. Assault Rifle destroyed. 00455_ Lgt. Ion Engine destroyed. 00457_ as-03882 destroyed. 00459_ as-79327 destroyed. 00459_ as-92530 destroyed. 00462_ Wheel destroyed. 00463_ EM Shotgun destroyed. 00464_ Imp. Terrain Scanner destroyed. 00464_ Wheel destroyed. 00470_ Assault Rifle destroyed. 00473_ as-01882 destroyed. 00476_ EM Shotgun destroyed. 00477_ Dropped Lrg. Storage Unit. Map ----- +----------------------------------------------------+ | ######?# #??????#????# ##%###????????????????????? | | ### #???????????# ## #????????????????????? | | #?????????#?# #### #????????????????????? | | """ ## #???????????# #??# #????????????????????? | | """ ## #?#####?????# #??# #????????????????????? | | """ ## ### ##????# #??# #????????????????????? | | ## ## ###### #??# #?????????????#??????? | | ####### % #??# #????????????????????? | | ??????# #########??# ##???????????????????? | | ?????# ##?????#?#?## ##??????????????????? | | ???## ##???#????#?# #??????????????????? | | ????# #???????????# ##????? ???????????? | | ????## #????????#??# ##??????????????????? | | ?????## #?????###???# ##???????????????????? | | ??????# ##??#?## #?## #????????????????????? | | ??????# #?????# ## #?#??????????????????? | | ??????# ?????# #????????? ??????????? | | ??????# ?#???# ####?????????????????? | | ??????# ????## ##??????????????????? | | ??????# #?????## "" ###????????????????? | | ?????? ###?#????## """ !% ???????????????? | | ?????? ###?????#???## """ #####???????????????? | | ?????? #?????????????## #???????????????????? | | ??????? ???????????????## #????#??????????????? | | ????????????????????????#% #???????????????????? | | ???????????????????????##@a ##???????????????????? | | ??????????????????????##!%aa##???????????????????? | | ???????#??????????????#!%= #???????????????????? | | ?????????????#????????#!% #???????????????????? | | ??????????????????????## ##???????????????????? | | ???????????????????????######????????#???????????? | | ?????????????????????????????????????????????????? | | | | | | | | | | | | | | | | | | | | | | | | | | | | | | | | | | | | | +----------------------------------------------------+ Best States ------------- Heat Dissipation 25 Energy Generation 10 Energy Capacity 125 Matter Stores 300 Matter Capacity 300 Sight Range 16 Terrain Scan Range 16 Terrain Scan Density 10 Evasion (%) 44 Item Schematics ----------------- None Robot Schematics ------------------ None Fabricated ------------ Nothing Alien Tech Used ----------------- None Achievements -------------- None Challenges ------------ None Game ------ Seed ActuatorDisposablePlating Manual? 0 Play Time 00:05:45 Cumulative 323.5 hours Start 2023.10.27 @ 07:00:21 End 2023.10.27 @ 07:04:38 Sessions 1 Manual Loads 0 Difficulty Rogue Special Mode None Game No. 368 Rogue 368 Adventurer 0 Explorer 0 Win Type - Total 6 Types 3/1/1/1/0/0/0/0/0 Lore% 65 Gallery% 79 Achievement% 67 Wizard Run 0 Options --------- ASCII 0 Keyboard 0 Movement Numpad Keybinds 0 Fullscreen 1 Font 24/Smallcaps Map View 76x50 Tactical HUD 1 Map Filters NONE Filters NONE Steam 1 RUN: 097f762e-dd38-4fff-b317-fc61b835089e